[Event "FIDE World Rapid-ch Open 2018"]
[White "Moiseenko, Vadim"]
[Black "Teterev, Vitaly"]
[Site "St. Petersburg"]
[Round "9.67"]
[Annotator "ChessBase"]
[Result "1-0"]
[Date "2018.12.27"]
[WhiteElo "2501"]
[BlackElo "2486"]
[PlyCount "97"]
[TimeControl "900+10"]

1. e4 {[%emt 0:0:0]} c5 {[%emt 0:0:0]} 2. Nf3 {[%emt 0:0:0]} d6 {[%emt 0:0:0]} 3. d4 {[%emt 0:0:0]} cxd4 {[%emt 0:0:0]} 4. Nxd4 {[%emt 0:0:0]} Nf6 {[%emt 0:0:0]} 5. Nc3 {[%emt 0:0:0]} a6 {[%emt 0:0:0]} 6. Be3 {[%emt 0:0:2]
} e6 {[%emt 0:0:2]} 7. Be2 {[%emt 0:0:2]} Qc7 {[%emt 0:0:51]
} 8. g4 {[%emt 0:0:3]} b5 {[%emt 0:0:20]} 9. g5 {[%emt 0:0:43]} Nfd7 {[%emt 0:0:47]
} 10. a3 {[%emt 0:0:37]} Bb7 {[%emt 0:0:13]} 11. h4 {[%emt 0:0:0]} Nc5 {[%emt 0:0:29]} 12. f3 {[%emt 0:0:18]} Nbd7 {[%emt 0:0:36]} 13. h5 {[%emt 0:0:22]} Nb6 {[%emt 0:0:38]} 14. Qd2 {[%emt 0:0:41]} 0-0-0 {[%emt 0:0:24]
} 15. 0-0-0 {[%emt 0:0:25]} d5 {[%emt 0:0:59]} 16. exd5 {[%emt 0:1:19]
} Nxd5 {[%emt 0:0:53]} 17. Nxd5 {[%emt 0:0:3]} Rxd5 {[%emt 0:0:0]} 18. Qc3 {[%emt 0:1:6]} Bd6 {[%emt 0:0:44]} 19. h6 {[%emt 0:0:6]} Be5 {[%emt 0:0:43]} 20. Nxb5 {[%emt 0:3:27]} axb5 {[%emt 0:0:21]} 21. Rxd5 {[%emt 0:0:1]
} Bxd5 {[%emt 0:4:1]} 22. Qxc5 {[%emt 0:0:1]} Qxc5 {[%emt 0:0:0]} 23. Bxc5 {[%emt 0:0:2]} gxh6 {[%emt 0:0:8]} 24. gxh6 {[%emt 0:0:0]} Rg8 {[%emt 0:0:57]} 25. Be3 {[%emt 0:0:27]} f5 {[%emt 0:0:43]} 26. b3 {[%emt 0:3:3]
} Rg2 {[%emt 0:0:13]} 27. Kd1 {[%emt 0:0:4]} Rg3 {[%emt 0:0:0]} 28. Rf1 {[%emt 0:2:3]} Kc7 {[%emt 0:1:54]} 29. Kd2 {[%emt 0:0:4]} Bd6 {[%emt 0:0:36]} 30. a4 {[%emt 0:1:8]} bxa4 {[%emt 0:0:6]} 31. bxa4 {[%emt 0:0:1]
} f4 {[%emt 0:0:10]} 32. Bf2 {[%emt 0:0:52]} Rg2 {[%emt 0:0:0]} 33. c3 {[%emt 0:0:14]} e5 {[%emt 0:0:15]} 34. a5 {[%emt 0:0:21]} Rh2 {[%emt 0:0:51]
} 35. a6 {[%emt 0:0:20]} Rxh6 {[%emt 0:0:1]} 36. Rg1 {[%emt 0:0:0]} Rg6 {[%emt 0:0:9]} 37. Rh1 {[%emt 0:0:2]} Rg7 {[%emt 0:0:22]} 38. Rh5 {[%emt 0:1:16]} Rd7 {[%emt 0:0:16]} 39. c4 {[%emt 0:0:12]} Bc6 {[%emt 0:0:0]} 40. Kc3 {[%emt 0:0:5]} e4 {[%emt 0:0:6]} 41. fxe4 {[%emt 0:0:9]} Bxe4 {[%emt 0:0:2]} 42. a7 {[%emt 0:0:14]} f3 {[%emt 0:0:8]} 43. Bd3 {[%emt 0:0:12]
} Bc6 {[%emt 0:0:1]} 44. Rh6 {[%emt 0:0:47]} Kb7 {[%emt 0:0:0]} 45. Bf5 {[%emt 0:0:17]} Be5+ {[%emt 0:0:18]} 46. Kb4 {[%emt 0:0:7]} Rd8 {[%emt 0:0:17]} 47. Rxc6 {[%emt 0:0:12]} Kxc6 {[%emt 0:0:13]} 48. Be4+ {[%emt 0:0:3]
} Kd6 {[%emt 0:0:11]} 49. a8=Q {[%emt 0:0:4]} 1-0

[Event "FIDE World Rapid-ch Open 2018"]
[White "Kevlishvili, Robby"]
[Black "Gareyev, Timur"]
[Site "St. Petersburg"]
[Round "9.68"]
[Annotator "ChessBase"]
[Result "1/2-1/2"]
[Date "2018.12.27"]
[WhiteElo "2451"]
[BlackElo "2569"]
[PlyCount "111"]
[TimeControl "900+10"]

1. e4 {[%emt 0:0:0]} e5 {[%emt 0:0:25]} 2. Nf3 {[%emt 0:0:0]} Nc6 {[%emt 0:0:3]
} 3. Bb5 {[%emt 0:0:0]} a6 {[%emt 0:0:10]} 4. Ba4 {[%emt 0:0:0]} Nf6 {[%emt 0:0:9]} 5. d3 {[%emt 0:0:7]} d6 {[%emt 0:0:44]} 6. c3 {[%emt 0:0:1]
} g6 {[%emt 0:0:3]} 7. Bg5 {[%emt 0:0:6]} h6 {[%emt 0:0:20]} 8. Bh4 {[%emt 0:0:2]} Be7 {[%emt 0:0:13]} 9. Nbd2 {[%emt 0:0:9]} Nh5 {[%emt 0:0:6]
} 10. Bg3 {[%emt 0:0:25]} 0-0 {[%emt 0:0:56]} 11. Nf1 {[%emt 0:0:0]} Ng7 {[%emt 0:0:52]} 12. N3d2 {[%emt 0:0:43]} f5 {[%emt 0:0:26]} 13. f3 {[%emt 0:0:3]} Kh8 {[%emt 0:0:17]} 14. Qe2 {[%emt 0:0:51]} b5 {[%emt 0:0:0]} 15. Bb3 {[%emt 0:0:11]} Na5 {[%emt 0:0:49]} 16. Bc2 {[%emt 0:0:8]} Rb8 {[%emt 0:0:36]} 17. Bf2 {[%emt 0:0:18]} f4 {[%emt 0:0:34]} 18. Nb3 {[%emt 0:0:43]
} c5 {[%emt 0:0:27]} 19. Nxa5 {[%emt 0:0:13]} Qxa5 {[%emt 0:0:0]} 20. Nd2 {[%emt 0:0:4]} Be6 {[%emt 0:0:8]} 21. 0-0 {[%emt 0:1:9]} b4 {[%emt 0:0:19]} 22. Nb3 {[%emt 0:0:25]} Qc7 {[%emt 0:0:3]} 23. d4 {[%emt 0:0:0]} c4 {[%emt 0:0:1]} 24. Nd2 {[%emt 0:0:5]} Rfc8 {[%emt 0:0:47]} 25. Rfc1 {[%emt 0:1:43]} bxc3 {[%emt 0:1:4]} 26. bxc3 {[%emt 0:0:2]} Rb2 {[%emt 0:0:2]
} 27. a4 {[%emt 0:1:9]} Bd7 {[%emt 0:2:26]} 28. d5 {[%emt 0:0:0]} Ne8 {[%emt 0:1:44]} 29. Rab1 {[%emt 0:0:7]} Rcb8 {[%emt 0:0:12]} 30. Rxb2 {[%emt 0:0:37]} Rxb2 {[%emt 0:0:2]} 31. Nxc4 {[%emt 0:0:5]} Ra2 {[%emt 0:0:19]
} 32. Nb6 {[%emt 0:0:20]} Nf6 {[%emt 0:1:8]} 33. Qd3 {[%emt 0:0:0]} a5 {[%emt 0:1:31]} 34. Rb1 {[%emt 0:0:51]} Ra3 {[%emt 0:0:22]} 35. Nc4 {[%emt 0:0:16]} Ra2 {[%emt 0:0:18]} 36. Bb6 {[%emt 0:0:15]} Qc8 {[%emt 0:0:37]
} 37. Bb3 {[%emt 0:0:2]} Rxa4 {[%emt 0:0:5]} 38. Bxa4 {[%emt 0:0:2]
} Bxa4 {[%emt 0:0:1]} 39. Nxa5 {[%emt 0:0:3]} Qe8 {[%emt 0:0:0]} 40. Qc4 {[%emt 0:0:43]} Bd7 {[%emt 0:0:36]} 41. Nc6 {[%emt 0:0:13]} Bf8 {[%emt 0:0:1]} 42. Bc7 {[%emt 0:0:15]} Qa8 {[%emt 0:0:1]} 43. Rb8 {[%emt 0:0:5]
} Qa1+ {[%emt 0:0:2]} 44. Qf1 {[%emt 0:0:2]} Qxc3 {[%emt 0:0:0]} 45. Rxf8+ {[%emt 0:0:2]} Kg7 {[%emt 0:0:1]} 46. Bxd6 {[%emt 0:0:0]} Bxc6 {[%emt 0:0:2]} 47. Rc8 {[%emt 0:0:41]} Qd4+ {[%emt 0:0:18]} 48. Kh1 {[%emt 0:0:9]} Bb5 {[%emt 0:0:1]} 49. Qg1 {[%emt 0:0:4]} Qb2 {[%emt 0:0:15]
} 50. Qc1 {[%emt 0:0:34]} Qd4 {[%emt 0:0:10]} 51. Rb8 {[%emt 0:0:0]} Ne8 {[%emt 0:0:53]} 52. Bxe5+ {[%emt 0:0:19]} Qxe5 {[%emt 0:0:1]} 53. Rxb5 {[%emt 0:0:1]} Nd6 {[%emt 0:0:1]} 54. Qb2 {[%emt 0:0:3]} Kf6 {[%emt 0:0:10]
} 55. Qxe5+ {[%emt 0:0:4]} Kxe5 {[%emt 0:0:1]} 56. Rb6 {[%emt 0:0:2]
} 1/2-1/2

[Event "FIDE World Rapid-ch Open 2018"]
[White "Tukhaev, Adam"]
[Black "Maghsoodloo, Parham"]
[Site "St. Petersburg"]
[Round "9.69"]
[Annotator "ChessBase"]
[Result "1-0"]
[Date "2018.12.27"]
[WhiteElo "2527"]
[BlackElo "2688"]
[PlyCount "49"]
[TimeControl "900+10"]

1. e4 {[%emt 0:0:0]} c5 {[%emt 0:0:0]} 2. Nf3 {[%emt 0:0:0]} Nc6 {[%emt 0:0:0]
} 3. d4 {[%emt 0:0:4]} cxd4 {[%emt 0:0:0]} 4. Nxd4 {[%emt 0:0:0]} Nf6 {[%emt 0:0:0]} 5. Nc3 {[%emt 0:0:3]} d6 {[%emt 0:0:0]} 6. Bg5 {[%emt 0:1:23]} e6 {[%emt 0:0:0]} 7. Qd2 {[%emt 0:0:6]} a6 {[%emt 0:0:1]
} 8. 0-0-0 {[%emt 0:0:31]} Bd7 {[%emt 0:0:2]} 9. f4 {[%emt 0:0:18]} b5 {[%emt 0:0:2]
} 10. Bxf6 {[%emt 0:0:29]} gxf6 {[%emt 0:0:1]} 11. Kb1 {[%emt 0:0:6]
} Qb6 {[%emt 0:0:5]} 12. Nf3 {[%emt 0:0:7]} b4 {[%emt 0:0:0]} 13. Ne2 {[%emt 0:0:3]} a5 {[%emt 0:0:4]} 14. f5 {[%emt 0:0:30]} a4 {[%emt 0:0:54]
} 15. Nf4 {[%emt 0:0:39]} b3 {[%emt 0:1:57]} 16. cxb3 {[%emt 0:0:0]} axb3 {[%emt 0:0:7]} 17. a3 {[%emt 0:0:2]} Ra4 {[%emt 0:0:41]} 18. Nh5 {[%emt 0:4:28]} Be7 {[%emt 0:0:2]} 19. Qh6 {[%emt 0:0:13]} Kd8 {[%emt 0:2:10]
} 20. Qg7 {[%emt 0:1:20]} Re8 {[%emt 0:2:32]} 21. Nxf6 {[%emt 0:0:2]
} exf5 {[%emt 0:0:45]} 22. Nxe8 {[%emt 0:0:42]} fxe4 {[%emt 0:0:0]} 23. Nxd6 {[%emt 0:0:44]} exf3 {[%emt 0:0:20]} 24. Qh8+ {[%emt 0:0:0]} Kc7 {[%emt 0:0:3]} 25. Nb5+ {[%emt 0:0:1]} 1-0

[Event "FIDE World Rapid-ch Open 2018"]
[White "Tregubov, Pavel V."]
[Black "Tissir, Mohamed"]
[Site "St. Petersburg"]
[Round "9.70"]
[Annotator "ChessBase"]
[Result "1-0"]
[Date "2018.12.27"]
[WhiteElo "2592"]
[BlackElo "2387"]
[PlyCount "61"]
[TimeControl "900+10"]

1. d4 {[%emt 0:0:0]} e6 {[%emt 0:0:43]} 2. e4 {[%emt 0:0:12]} c5 {[%emt 0:0:0]} 3. d5 {[%emt 0:0:3]} exd5 {[%emt 0:0:2]} 4. exd5 {[%emt 0:0:1]} d6 {[%emt 0:0:1]} 5. c4 {[%emt 0:0:13]} Ne7 {[%emt 0:0:57]} 6. Nc3 {[%emt 0:0:31]
} Ng6 {[%emt 0:0:2]} 7. h3 {[%emt 0:0:15]} Be7 {[%emt 0:0:1]
} 8. Nf3 {[%emt 0:0:3]} 0-0 {[%emt 0:0:3]} 9. Bd3 {[%emt 0:0:40]} Nd7 {[%emt 0:0:26]
} 10. Qc2 {[%emt 0:0:11]} Re8 {[%emt 0:1:31]} 11. 0-0 {[%emt 0:0:0]} Bf6 {[%emt 0:0:5]} 12. Bd2 {[%emt 0:0:20]} Nde5 {[%emt 0:0:28]} 13. Nxe5 {[%emt 0:0:52]} Bxe5 {[%emt 0:0:2]} 14. f4 {[%emt 0:0:30]} Bd4+ {[%emt 0:0:1]
} 15. Kh2 {[%emt 0:0:1]} Bd7 {[%emt 0:0:16]} 16. Ne2 {[%emt 0:0:0]} Be3 {[%emt 0:0:52]} 17. f5 {[%emt 0:0:46]} Nf8 {[%emt 0:0:58]} 18. f6 {[%emt 0:0:26]} gxf6 {[%emt 0:0:4]} 19. Rf3 {[%emt 0:1:9]} Bxd2 {[%emt 0:0:41]
} 20. Qxd2 Re5 21. Raf1 {[%emt 0:0:20]} f5 {[%emt 0:0:16]} 22. Ng3 {[%emt 0:1:11]} Ng6 {[%emt 0:1:5]} 23. Bxf5 {[%emt 0:0:32]} Be8 {[%emt 0:1:3]
} 24. Qh6 {[%emt 0:0:51]} Qe7 {[%emt 0:3:53]} 25. Nh5 {[%emt 0:0:0]} f6 {[%emt 0:0:2]} 26. Nxf6+ {[%emt 0:0:59]} Kh8 {[%emt 0:1:24]} 27. Nxe8 {[%emt 0:3:22]} Rxf5 {[%emt 0:0:51]} 28. Rxf5 {[%emt 0:0:7]} Qxe8 {[%emt 0:0:1]
} 29. Rf7 {[%emt 0:0:13]} Qg8 {[%emt 0:0:1]} 30. Qg5 {[%emt 0:0:0]} Qd8 {[%emt 0:0:18]} 31. Rxh7+ 1-0

[Event "FIDE World Rapid-ch Open 2018"]
[White "Gabrielian, Artur"]
[Black "Lobanov, Sergei"]
[Site "St. Petersburg"]
[Round "9.71"]
[Annotator "ChessBase"]
[Result "1-0"]
[Date "2018.12.27"]
[WhiteElo "2499"]
[BlackElo "2526"]
[PlyCount "67"]
[TimeControl "900+10"]

1. e4 c6 2. d4 d5 3. Nd2 dxe4 4. Nxe4 Bf5 5. Ng3 Bg6 6. c3 e6 7. Nh3 Bd6 8. Nf4 Ne7 9. h4 Qc7 10. Qf3 Nd7 11. h5 Bc2 12. h6 g6 13. Bd3 Bxd3 14. Nxd3 f5 15. Bg5 Nd5 16. 0-0-0 0-0 17. Rhe1 Rae8 18. c4 N5f6 19. Kb1 b6 20. Re2 c5 21. dxc5 bxc5 22. Nf4 Bxf4 23. Bxf4 e5 24. Bg5 Nb6 25. Bxf6 Rxf6 26. Ne4 Rfe6 27. Ng5 Rd6 28. Red2 Red8 29. Ne6 Rxe6 30. Rxd8+ Kf7 31. Rh8 Kf6 32. Rdd8 Re7 33. Rhf8+ Ke6 34. Qd5+ 1-0

[Event "FIDE World Rapid-ch Open 2018"]
[White "Anikonov, Dmitry"]
[Black "Golubov, Saveliy"]
[Site "St. Petersburg"]
[Round "9.72"]
[Annotator "ChessBase"]
[Result "1/2-1/2"]
[Date "2018.12.27"]
[WhiteElo "2371"]
[BlackElo "2482"]
[PlyCount "77"]
[TimeControl "900+10"]

1. d4 {[%emt 0:0:0]} g6 {[%emt 0:0:0]} 2. c4 {[%emt 0:0:0]} Bg7 {[%emt 0:0:0]} 3. e4 {[%emt 0:0:0]} Nc6 {[%emt 0:0:13]} 4. Be3 {[%emt 0:0:6]} d6 {[%emt 0:0:2]} 5. Nc3 {[%emt 0:0:14]} e5 {[%emt 0:0:9]} 6. d5 {[%emt 0:0:0]} Nd4 {[%emt 0:0:2]} 7. Nge2 {[%emt 0:1:29]} Nxe2 {[%emt 0:0:36]} 8. Bxe2 {[%emt 0:0:3]} Bh6 {[%emt 0:0:52]} 9. Bxh6 {[%emt 0:1:22]} Nxh6 {[%emt 0:0:2]
} 10. Qd2 {[%emt 0:0:2]} Ng8 {[%emt 0:0:2]} 11. 0-0 {[%emt 0:0:0]} Nf6 {[%emt 0:0:53]} 12. Qh6 {[%emt 0:1:42]} Qe7 {[%emt 0:0:47]} 13. b4 {[%emt 0:0:49]} Bg4 {[%emt 0:3:42]} 14. f3 {[%emt 0:0:2]} Bd7 {[%emt 0:0:0]} 15. g3 {[%emt 0:1:6]} a5 {[%emt 0:1:23]} 16. a3 {[%emt 0:0:15]} g5 {[%emt 0:0:2]} 17. Qxg5 {[%emt 0:1:17]} Nxd5 {[%emt 0:0:2]} 18. Qxe7+ {[%emt 0:0:2]
} Nxe7 {[%emt 0:0:1]} 19. Nd5 {[%emt 0:0:16]} Nxd5 {[%emt 0:0:0]} 20. cxd5 {[%emt 0:0:1]} c6 {[%emt 0:0:6]} 21. Bc4 {[%emt 0:2:9]} b5 {[%emt 0:0:3]} 22. dxc6 {[%emt 0:1:10]} bxc4 {[%emt 0:0:1]} 23. cxd7+ {[%emt 0:0:0]
} Kxd7 {[%emt 0:0:2]} 24. Rac1 {[%emt 0:1:45]} Rhc8 {[%emt 0:0:0]} 25. Rc3 {[%emt 0:0:5]} axb4 {[%emt 0:0:35]} 26. axb4 {[%emt 0:0:1]
} Ra4 {[%emt 0:0:1]} 27. Rb1 {[%emt 0:0:2]} f5 {[%emt 0:0:1]} 28. Rb2 {[%emt 0:0:20]
} fxe4 {[%emt 0:0:45]} 29. fxe4 {[%emt 0:0:2]} Rc6 {[%emt 0:0:0]} 30. b5 {[%emt 0:0:50]} Rb6 {[%emt 0:0:46]} 31. Rbc2 {[%emt 0:0:14]} Rxb5 {[%emt 0:0:25]} 32. Rxc4 {[%emt 0:0:1]} Rbb4 {[%emt 0:1:16]} 33. Rxb4 {[%emt 0:0:9]} Rxb4 {[%emt 0:0:1]} 34. Re2 {[%emt 0:0:1]} h5 {[%emt 0:0:0]} 35. Kg2 {[%emt 0:0:6]} h4 {[%emt 0:0:19]} 36. gxh4 {[%emt 0:0:16]} Ke6 {[%emt 0:0:1]} 37. Kg3 {[%emt 0:0:4]} Kf6 {[%emt 0:0:12]} 38. Rf2+ {[%emt 0:0:16]
} Kg6 {[%emt 0:0:32]} 39. Rd2 {[%emt 0:0:8]} 1/2-1/2

[Event "FIDE World Rapid-ch Open 2018"]
[White "Steinberg, Nitzan"]
[Black "Reshetnikov, Alexey"]
[Site "St. Petersburg"]
[Round "9.73"]
[Annotator "ChessBase"]
[Result "1-0"]
[Date "2018.12.27"]
[WhiteElo "2532"]
[BlackElo "2492"]
[PlyCount "99"]
[TimeControl "900+10"]

1. e4 {[%emt 0:0:0]} c5 {[%emt 0:0:0]} 2. Nf3 {[%emt 0:0:0]} Nc6 {[%emt 0:0:0]
} 3. d4 {[%emt 0:0:0]} cxd4 {[%emt 0:0:0]} 4. Nxd4 {[%emt 0:0:0]} e6 {[%emt 0:0:13]} 5. Nc3 {[%emt 0:0:7]} Qc7 {[%emt 0:0:1]} 6. Be3 {[%emt 0:0:9]} a6 {[%emt 0:1:24]} 7. Be2 {[%emt 0:0:2]} Nf6 {[%emt 0:0:0]} 8. 0-0 {[%emt 0:0:7]} b5 {[%emt 0:0:31]} 9. Nxc6 {[%emt 0:0:51]} dxc6 {[%emt 0:0:2]} 10. f4 {[%emt 0:1:6]} Be7 {[%emt 0:0:8]} 11. e5 {[%emt 0:0:0]} Nd5 {[%emt 0:0:2]} 12. Nxd5 {[%emt 0:0:1]} cxd5 {[%emt 0:0:2]} 13. Bd4 {[%emt 0:0:47]} Bd7 {[%emt 0:0:54]} 14. Kh1 {[%emt 0:0:39]} g6 {[%emt 0:0:34]
} 15. a3 {[%emt 0:0:50]} 0-0 {[%emt 0:0:31]} 16. Rf3 {[%emt 0:0:0]} Rfc8 {[%emt 0:0:52]} 17. Bd3 {[%emt 0:0:18]} a5 {[%emt 0:0:22]} 18. Rh3 {[%emt 0:0:25]} b4 {[%emt 0:3:25]} 19. a4 {[%emt 0:0:1]} Bc5 {[%emt 0:0:0]} 20. Bxc5 {[%emt 0:1:21]} Qxc5 {[%emt 0:0:2]} 21. Qd2 {[%emt 0:1:9]
} Qf8 {[%emt 0:0:59]} 22. g4 {[%emt 0:0:56]} Rc5 {[%emt 0:1:18]} 23. f5 {[%emt 0:1:7]
} d4 {[%emt 0:0:25]} 24. Qf4 {[%emt 0:0:48]} Rac8 {[%emt 0:0:0]} 25. Qxd4 {[%emt 0:2:15]} Rd5 {[%emt 0:0:54]} 26. Qe3 {[%emt 0:0:51]} Rcc5 {[%emt 0:1:16]} 27. Qg5 {[%emt 0:0:24]} Bc6 {[%emt 0:1:38]} 28. Kg1 {[%emt 0:0:10]
} exf5 {[%emt 0:0:5]} 29. gxf5 {[%emt 0:0:11]} Rxe5 {[%emt 0:0:0]} 30. Rf1 {[%emt 0:1:3]} Qg7 {[%emt 0:0:18]} 31. Qh4 {[%emt 0:1:28]} g5 {[%emt 0:0:3]} 32. Qd4 {[%emt 0:0:23]} Qf6 {[%emt 0:0:7]} 33. Rg3 {[%emt 0:0:10]
} h6 {[%emt 0:0:5]} 34. h4 {[%emt 0:0:5]} Rcd5 {[%emt 0:0:0]} 35. Qf4 {[%emt 0:0:12]} Kf8 {[%emt 0:0:23]} 36. hxg5 {[%emt 0:0:1]} hxg5 {[%emt 0:0:1]} 37. Rxg5 {[%emt 0:0:6]} Re8 {[%emt 0:0:29]} 38. Rg4 {[%emt 0:0:30]
} Qd6 {[%emt 0:0:7]} 39. Qg5 {[%emt 0:0:10]} Qc5+ {[%emt 0:0:0]} 40. Kh2 {[%emt 0:0:1]} Rxd3 {[%emt 0:0:5]} 41. Qg7+ {[%emt 0:0:17]} Ke7 {[%emt 0:0:3]} 42. cxd3 {[%emt 0:0:8]} Qc2+ {[%emt 0:0:14]} 43. Kg1 {[%emt 0:0:3]
} Kd8 {[%emt 0:0:19]} 44. Rd4+ {[%emt 0:0:13]} Kc7 {[%emt 0:0:0]} 45. Rc4 {[%emt 0:0:13]} Qe2 {[%emt 0:0:9]} 46. Qxf7+ {[%emt 0:0:15]} Kb6 {[%emt 0:0:2]} 47. Rxc6+ {[%emt 0:0:8]} Kxc6 {[%emt 0:0:2]} 48. Rc1+ {[%emt 0:0:5]} Kd6 {[%emt 0:0:2]} 49. Qc7+ {[%emt 0:0:9]} Kd5 {[%emt 0:0:0]} 50. Qd7+ {[%emt 0:0:3]} 1-0

[Event "FIDE World Rapid-ch Open 2018"]
[White "Kryakvin, Dmitry"]
[Black "Lomasov, Semyon"]
[Site "St. Petersburg"]
[Round "9.74"]
[Annotator "ChessBase"]
[Result "1/2-1/2"]
[Date "2018.12.27"]
[WhiteElo "2588"]
[BlackElo "2553"]
[PlyCount "28"]
[TimeControl "900+10"]

1. d4 e6 2. Nf3 Nf6 3. c4 Bb4+ 4. Bd2 a5 5. g3 0-0 6. Bg2 d5 7. Qc2 c5 8. dxc5 d4 9. 0-0 Bxc5 10. Bg5 Nc6 11. Nbd2 e5 12. a3 h6 13. Bxf6 Qxf6 14. Ne4 Qe7 1/2-1/2

[Event "FIDE World Rapid-ch Open 2018"]
[White "Baron, Tal"]
[Black "Makoveev, Ilya"]
[Site "St. Petersburg"]
[Round "9.75"]
[Annotator "ChessBase"]
[Result "1/2-1/2"]
[Date "2018.12.27"]
[WhiteElo "2532"]
[BlackElo "2257"]
[PlyCount "28"]
[TimeControl "900+10"]

1. d4 {[%emt 0:0:23]} Nf6 {[%emt 0:0:0]} 2. Bf4 {[%emt 0:0:1]} g6 {[%emt 0:0:0]
} 3. Nc3 {[%emt 0:0:1]} d5 {[%emt 0:0:0]} 4. e3 {[%emt 0:0:0]} Bg7 {[%emt 0:0:0]} 5. Be2 {[%emt 0:0:1]} 0-0 {[%emt 0:0:22]} 6. h4 {[%emt 0:0:2]
} c5 {[%emt 0:0:19]} 7. h5 {[%emt 0:0:4]} Nc6 {[%emt 0:0:47]} 8. hxg6 {[%emt 0:0:54]} hxg6 {[%emt 0:0:19]} 9. Nf3 {[%emt 0:0:2]} Ne4 {[%emt 0:0:38]
} 10. Kf1 {[%emt 0:4:30]} Bg4 {[%emt 0:1:31]} 11. Ng5 {[%emt 0:0:0]} Bxe2+ {[%emt 0:1:19]} 12. Nxe2 {[%emt 0:1:19]} cxd4 {[%emt 0:1:27]} 13. exd4 {[%emt 0:0:35]} e5 {[%emt 0:0:57]} 14. Nxe4 {[%emt 0:0:16]} dxe4 {[%emt 0:0:26]
} 1/2-1/2

[Event "FIDE World Rapid-ch Open 2018"]
[White "Nozdrachev, Vladislav"]
[Black "Gaifullin, Artur"]
[Site "St. Petersburg"]
[Round "9.76"]
[Annotator "ChessBase"]
[Result "0-1"]
[Date "2018.12.27"]
[WhiteElo "2486"]
[BlackElo "2448"]
[PlyCount "70"]
[TimeControl "900+10"]

1. e4 {[%emt 0:0:0]} c6 {[%emt 0:0:0]} 2. d4 {[%emt 0:0:0]} d5 {[%emt 0:0:0]} 3. Nc3 {[%emt 0:0:0]} dxe4 {[%emt 0:0:0]} 4. Nxe4 {[%emt 0:0:0]} Bf5 {[%emt 0:0:0]} 5. Ng3 {[%emt 0:0:10]} Bg6 {[%emt 0:0:0]} 6. h4 {[%emt 0:1:13]
} h6 {[%emt 0:0:0]} 7. Nf3 {[%emt 0:0:2]} Nd7 {[%emt 0:0:0]
} 8. h5 {[%emt 0:0:2]} Bh7 {[%emt 0:0:0]} 9. Bd3 {[%emt 0:0:2]} Bxd3 {[%emt 0:0:1]
} 10. Qxd3 {[%emt 0:0:1]} e6 {[%emt 0:0:7]} 11. Bd2 {[%emt 0:0:0]} Ngf6 {[%emt 0:0:19]} 12. 0-0-0 {[%emt 0:0:5]} Be7 {[%emt 0:0:3]} 13. Kb1 {[%emt 0:0:9]} Qb6 {[%emt 0:0:16]} 14. Ne4 {[%emt 0:0:13]} Rd8 {[%emt 0:0:53]
} 15. g4 {[%emt 0:1:40]} Nxg4 {[%emt 0:1:57]} 16. Rhg1 {[%emt 0:2:28]
} f5 {[%emt 0:0:2]} 17. Rxg4 {[%emt 0:2:9]} fxg4 {[%emt 0:0:0]} 18. Nd6+ {[%emt 0:0:10]} Bxd6 {[%emt 0:0:8]} 19. Qg6+ {[%emt 0:0:1]} Kf8 {[%emt 0:0:1]} 20. Qxe6 {[%emt 0:0:55]} Be7 {[%emt 0:4:53]} 21. Qf5+ {[%emt 0:2:7]
} Bf6 {[%emt 0:1:22]} 22. Nh4 {[%emt 0:3:27]} Qxd4 {[%emt 0:0:0]} 23. Ng6+ {[%emt 0:0:38]} Kg8 {[%emt 0:0:1]} 24. c3 {[%emt 0:1:48]} Qd5 {[%emt 0:0:9]} 25. Qxg4 {[%emt 0:0:23]} Ne5 {[%emt 0:0:14]} 26. Nxe5 {[%emt 0:0:37]
} Bxe5 {[%emt 0:0:32]} 27. a3 {[%emt 0:0:31]} Qd7 {[%emt 0:0:0]} 28. Qc4+ {[%emt 0:0:15]} Qf7 {[%emt 0:0:2]} 29. Qe4 {[%emt 0:0:2]} Bf6 {[%emt 0:0:34]} 30. Qg4 {[%emt 0:0:15]} Qd7 {[%emt 0:0:23]} 31. Qc4+ {[%emt 0:0:11]
} Qd5 {[%emt 0:0:1]} 32. Qg4 {[%emt 0:0:3]} Qd3+ {[%emt 0:0:0]} 33. Ka2 {[%emt 0:0:10]} Qd7 {[%emt 0:0:1]} 34. Qe2 {[%emt 0:0:18]} Qd5+ {[%emt 0:0:24]} 35. c4 {[%emt 0:0:4]} Qe5 {[%emt 0:0:25]} 0-1

[Event "FIDE World Rapid-ch Open 2018"]
[White "Kovalenko, Igor"]
[Black "Vlassov, Nikolai"]
[Site "St. Petersburg"]
[Round "9.77"]
[Annotator "ChessBase"]
[Result "1-0"]
[Date "2018.12.27"]
[WhiteElo "2657"]
[BlackElo "2401"]
[PlyCount "109"]
[TimeControl "900+10"]

1. e4 {[%emt 0:0:0]} Nc6 {[%emt 0:0:0]} 2. Nc3 {[%emt 0:0:0]} Nf6 {[%emt 0:0:0]
} 3. d4 {[%emt 0:0:18]} d5 {[%emt 0:0:0]} 4. e5 {[%emt 0:0:0]} Nd7 {[%emt 0:0:0]} 5. Nxd5 {[%emt 0:0:21]} Ndb8 {[%emt 0:0:0]} 6. Ne3 {[%emt 0:0:4]} Qxd4 {[%emt 0:0:3]} 7. Qxd4 {[%emt 0:0:1]} Nxd4 {[%emt 0:0:0]} 8. f4 {[%emt 0:1:5]} c6 {[%emt 0:3:2]} 9. c3 {[%emt 0:0:9]} Nf5 {[%emt 0:0:3]
} 10. Bd3 {[%emt 0:0:9]} g6 {[%emt 0:0:33]} 11. Nf3 {[%emt 0:0:0]} Nxe3 {[%emt 0:0:33]} 12. Bxe3 {[%emt 0:0:2]} Bf5 {[%emt 0:0:3]} 13. 0-0-0 {[%emt 0:1:59]} e6 {[%emt 0:1:9]} 14. Nd4 {[%emt 0:6:48]} Nd7 {[%emt 0:1:7]
} 15. Nb3 {[%emt 0:1:36]} Bh6 {[%emt 0:4:18]} 16. Bxf5 {[%emt 0:1:2]
} gxf5 {[%emt 0:0:2]} 17. g3 {[%emt 0:0:21]} 0-0-0 {[%emt 0:0:0]} 18. Bxa7 {[%emt 0:1:22]} Nxe5 {[%emt 0:0:20]} 19. Bd4 {[%emt 0:0:15]
} f6 {[%emt 0:0:1]} 20. Rhe1 {[%emt 0:0:34]} Rhe8 {[%emt 0:2:5]} 21. Bxe5 {[%emt 0:0:9]} Rxd1+ {[%emt 0:0:26]} 22. Kxd1 {[%emt 0:0:1]} fxe5 {[%emt 0:0:3]
} 23. Rxe5 {[%emt 0:0:2]} b6 {[%emt 0:0:26]} 24. Nd4 {[%emt 0:0:0]} Kd7 {[%emt 0:0:1]} 25. Nf3 {[%emt 0:0:1]} Bg7 {[%emt 0:0:13]} 26. Re2 {[%emt 0:0:1]} Bf6 {[%emt 0:0:13]} 27. Kc2 {[%emt 0:0:10]} h5 {[%emt 0:0:0]} 28. Ne5+ {[%emt 0:0:51]} Bxe5 {[%emt 0:0:42]} 29. Rxe5 {[%emt 0:0:0]} h4 {[%emt 0:0:10]} 30. b4 {[%emt 0:0:33]} hxg3 {[%emt 0:0:3]} 31. hxg3 {[%emt 0:0:1]} b5 {[%emt 0:0:35]} 32. Kb3 {[%emt 0:0:1]} Ra8 {[%emt 0:0:0]} 33. Re3 {[%emt 0:0:5]} Kd6 {[%emt 0:0:7]} 34. Rd3+ {[%emt 0:0:2]} Kc7 {[%emt 0:0:5]} 35. a3 {[%emt 0:0:1]} Re8 {[%emt 0:0:21]} 36. Re3 {[%emt 0:0:5]
} Kd6 {[%emt 0:0:15]} 37. a4 {[%emt 0:0:3]} bxa4+ {[%emt 0:0:0]} 38. Kxa4 {[%emt 0:0:3]} Ra8+ {[%emt 0:0:34]} 39. Kb3 {[%emt 0:0:0]} Ra1 {[%emt 0:0:2]} 40. Rd3+ {[%emt 0:0:4]} Kc7 {[%emt 0:0:3]} 41. Re3 {[%emt 0:0:11]
} Kd6 {[%emt 0:0:2]} 42. Kc4 {[%emt 0:0:1]} Rc1 {[%emt 0:0:0]} 43. Rd3+ {[%emt 0:0:2]} Kc7 {[%emt 0:0:1]} 44. Kc5 {[%emt 0:0:8]} Re1 {[%emt 0:0:10]} 45. Rd6 {[%emt 0:0:34]} Re3 {[%emt 0:0:2]} 46. c4 {[%emt 0:0:4]
} e5 {[%emt 0:0:30]} 47. Rxc6+ {[%emt 0:0:3]} Kb7 {[%emt 0:0:0]} 48. Rf6 {[%emt 0:0:7]} e4 {[%emt 0:0:8]} 49. Rxf5 {[%emt 0:0:1]} Rxg3 {[%emt 0:0:2]} 50. Re5 {[%emt 0:0:1]} e3 {[%emt 0:0:3]} 51. Re7+ {[%emt 0:0:3]
} Kc8 {[%emt 0:0:1]} 52. b5 {[%emt 0:0:6]} Kd8 {[%emt 0:0:0]} 53. Re4 {[%emt 0:0:2]} Kd7 {[%emt 0:0:3]} 54. b6 {[%emt 0:0:2]} Rh3 {[%emt 0:0:3]} 55. Kb5 {[%emt 0:0:1]} 1-0